bitfinex/quotes_ETHUSD_20241212
["timestamp","ask_amount","ask_price","bid_price","bid_amount"]
[1734033705409,0.68734,3877.2,3875.4,0.7715]
[1734033705613,0.55,3877.2,3875.6,5.16048]
[1734033705812,0.58224175,3877.2,3876.3,2.57971]
[1734033706007,0.55,3877.2,3876.5,2.57964]
[1734033706209,0.1952616,3879.2,3878.1,2.57858]
[1734033706443,0.8077,3879.7,3878.6,0.25]
[1734033706756,0.8077,3879.7,3879.0,0.25]
[1734033707099,0.8077,3879.7,3879.3,2.57776]
[1734033707311,0.03222356,3881.3,3879.5,0.25]
[1734033707312,0.03222129,3880.5,3879.5,0.25]
[1734033707534,0.12723944,3881.3,3879.9,0.25]
[1734033707808,0.12723944,3881.3,3879.7,0.25]
[1734033707809,0.8032,3881.0,3879.8,0.25]
[1734033708018,0.03221682,3880.9,3879.7,0.25]
[1734033708225,0.8032,3880.5,3879.8,0.08049382]
[1734033708404,2.57721,3880.2,3879.3,0.25]
[1734033708608,0.3702338,3880.4,3879.4,0.25]
[1734033708609,0.03222167,3880.1,3879.4,0.25]
[1734033708833,0.03222167,3880.1,3879.3,0.5]
[1734033709042,0.03222167,3880.1,3879.3,0.25]
[1734033709242,0.03222167,3880.1,3879.4,0.25]
[1734033709447,0.03222167,3880.1,3879.2,0.25]
[1734033709631,0.7749,3879.9,3879.1,0.25]
[1734033709835,2.57751,3879.7,3878.4,0.5]
[1734033710011,0.55,3879.4,3878.7,0.25]
[1734033710216,0.80712859,3879.5,3878.7,0.25]
[1734033710634,0.7749,3879.5,3878.7,0.25]
[1734033711069,0.7749,3879.5,3878.6,0.25]
[1734033711070,0.7749,3879.5,3878.6,0.5]
[1734033711278,0.7749,3879.5,3878.7,0.08051133]
[1734033711491,0.7749,3879.5,3878.6,0.5]
[1734033711630,0.5822258,3879.4,3878.7,0.08051208]
[1734033711942,0.13571258,3879.3,3878.3,0.25]
[1734033712142,0.7749,3879.5,3878.8,2.57807]
[1734033712553,0.7749,3879.5,3878.6,0.5]
[1734033712753,0.7749,3879.5,3878.7,0.08050906]
[1734033712954,0.7749,3879.5,3878.8,0.08051114]
[1734033713176,0.7749,3879.5,3878.7,2.57811]
[1734033713334,0.7749,3879.5,3878.8,0.08051014]
[1734033713533,0.7749,3879.5,3878.7,2.57811]
[1734033713962,0.7749,3879.5,3878.8,0.08050999]
[1734033714277,0.7749,3879.5,3878.6,0.5]
[1734033714481,0.55,3879.1,3878.2,0.25]
[1734033714755,0.55,3878.9,3877.4,0.25]
[1734033714917,3.12818,3878.7,3877.6,0.25]
[1734033715123,0.55,3878.5,3877.8,0.25]
[1734033715421,0.03223544,3878.4,3877.3,0.25]
[1734033715603,0.55,3878.3,3877.2,0.25]
[1734033715914,0.55,3878.1,3877.2,0.25]
[1734033716631,0.03223903,3878.0,3877.1,0.25]
[1734033716906,0.7504,3877.8,3877.1,0.25]
[1734033717485,0.7504,3877.8,3876.8,0.25]
[1734033717486,0.03224043,3877.7,3876.8,0.25]
[1734033717684,0.03224043,3877.7,3876.9,2.82936]
[1734033717886,0.7504,3877.8,3877.1,0.25]
[1734033718299,0.7504,3877.8,3877.4,0.25]
[1734033718512,0.7504,3877.8,3877.1,0.5]
[1734033719010,0.7504,3877.8,3877.1,0.25]
[1734033719211,0.78263968,3877.8,3877.2,0.25]
[1734033719415,0.7504,3877.8,3877.4,0.25]
[1734033719779,0.7504,3877.8,3877.2,0.5]
[1734033720315,2.61110961,3877.7,3877.2,0.25]
[1734033720480,2.61110961,3877.7,3877.0,0.25]
[1734033721024,0.7504,3877.8,3877.2,0.25]
[1734033721594,0.03223952,3877.7,3877.2,0.25]
[1734033722263,0.7504,3877.8,3877.2,0.25]
[1734033722578,0.7504,3877.8,3877.3,0.25]
[1734033723317,2.57898,3877.5,3876.8,0.25]
[1734033723480,0.03223728,3877.7,3876.9,0.08054836]
[1734033723481,0.03224343,3877.7,3876.9,0.08054836]
[1734033723681,0.03224343,3877.7,3877.1,0.25]
[1734033723905,0.7504,3877.8,3877.1,0.5]
[1734033724107,0.7504,3877.8,3877.4,0.25]
[1734033725212,0.7997,3878.4,3878.0,0.25]
[1734033725400,2.57773,3879.4,3878.2,0.25]
[1734033725599,0.7997,3879.7,3878.6,0.25]
[1734033725784,0.7997,3879.7,3879.1,0.25]
[1734033726013,0.7997,3879.7,3879.1,0.5]
[1734033726206,0.7997,3879.7,3879.1,0.807798]
[1734033726641,0.7997,3879.7,3879.1,0.5]
[1734033726791,0.7997,3879.7,3879.5,0.25]
[1734033727735,0.7997,3879.7,3879.3,0.25]
[1734033727931,0.7997,3879.7,3879.0,0.25]
[1734033728233,3.37722,3879.7,3879.0,0.25]
[1734033728435,3.37722,3879.7,3878.7,0.25]
[1734033728436,2.5778,3879.3,3878.7,0.25]
[1734033728646,0.03222823,3879.2,3878.7,0.25]
[1734033729009,0.03222823,3879.2,3878.3,0.25]
[1734033729205,0.55,3879.1,3878.4,0.08051775]
[1734033729449,0.55,3879.1,3878.5,0.33051863]
[1734033729622,0.55,3879.4,3878.8,0.25]
[1734033729819,0.337722,3879.6,3878.8,0.25]
[1734033730033,0.337722,3879.6,3877.7,0.8013]
[1734033730034,0.7997,3879.7,3879.2,0.25]
[1734033730343,0.7997,3879.7,3879.2,0.5]
[1734033731355,0.7997,3879.7,3878.9,0.25]
[1734033731534,0.7997,3879.7,3879.2,0.5]
[1734033733446,3.36519,3881.4,3880.0,0.25]
[1734033733612,2.57661,3881.1,3880.1,0.25]
[1734033733814,3.36525,3881.4,3880.3,0.25]
[1734033734208,2.57652,3881.2,3880.3,0.25]
[1734033734404,2.60882406,3881.1,3880.3,0.25]
[1734033734707,0.26088241,3881.0,3880.3,0.25]
[1734033734907,2.57654,3881.2,3880.3,0.25]
[1734033735108,0.55,3881.0,3880.3,0.25]
[1734033735554,0.55,3881.2,3880.3,0.25]
[1734033736335,0.03221401,3881.1,3880.3,0.25]
[1734033736535,0.55,3881.0,3880.2,0.25]
[1734033736733,0.55,3881.1,3880.2,0.25]
[1734033736909,0.55,3881.3,3880.4,0.25]
[1734033737111,3.517981,3881.3,3880.4,0.25]
[1734033737416,0.97372439,3881.3,3880.3,0.25]
[1734033737611,0.58221339,3881.3,3880.4,0.25]
[1734033737851,2.57659,3881.1,3880.4,0.25]
[1734033738015,0.55,3880.9,3880.3,0.25]
[1734033738214,0.03221585,3880.8,3880.3,0.25]
[1734033738432,0.55,3881.0,3880.3,0.25]
[1734033738649,0.34487373,3880.9,3880.3,0.25]
[1734033739022,0.34487378,3880.9,3880.3,0.25]
[1734033739236,0.34487379,3880.9,3880.3,0.25]
[1734033739433,0.312659,3880.9,3880.3,0.25]
[1734033739636,0.34487381,3880.9,3880.0,0.25]
[1734033739837,2.57724,3880.2,3879.6,0.25]
[1734033740061,0.03222188,3880.1,3879.3,0.25]
[1734033740237,0.55,3880.4,3879.3,0.25]
[1734033740412,2.5776,3879.6,3879.1,0.5]
[1734033740622,0.03222405,3879.5,3879.3,0.25]
[1734033740821,0.55,3879.8,3879.3,0.25]
[1734033741034,0.7763,3880.4,3879.6,0.25]
[1734033741235,1.111633,3880.4,3879.6,0.25]
[1734033741435,0.03222113,3880.9,3880.3,0.25]
[1734033741436,0.55,3880.8,3880.3,0.25]
[1734033741736,0.7904,3880.9,3880.3,0.25]
[1734033741964,2.57732,3880.0,3879.2,0.25]
[1734033742165,0.03222092,3879.9,3879.2,0.25]
[1734033742549,0.03222092,3879.9,3879.4,2.57766]
[1734033742752,2.57692,3880.6,3879.9,0.25]
[1734033743140,2.60919779,3880.5,3879.9,0.25]
[1734033743340,2.60919779,3880.5,3879.5,0.25]
[1734033743341,0.55,3880.4,3879.5,0.25]
[1734033743669,2.57726,3880.1,3879.6,0.25]
[1734033743873,2.60948057,3880.1,3879.5,0.25]
[1734033744175,2.57754,3879.7,3879.1,0.25]
[1734033744345,2.57754,3879.7,3878.4,2.57838]
[1734033744346,2.57784,3879.3,3878.7,0.25]
[1734033744531,0.032228,3879.2,3878.5,0.25]
[1734033744730,0.7521,3879.4,3878.1,0.25]
[1734033744963,0.7521,3878.6,3878.1,0.25]
[1734033745178,2.6105629,3878.5,3878.1,0.25]
[1734033745468,0.0322329,3878.5,3878.1,0.25]
[1734033745676,0.7521,3878.6,3878.3,0.25]
[1734033745992,0.8317,3879.1,3878.3,0.5]
[1734033746146,3.40963,3879.1,3878.3,0.5]
[1734033746343,0.5822324,3879.3,3878.6,0.25]
[1734033746543,0.55,3879.4,3878.6,0.25]
[1734033746746,0.55,3879.2,3878.3,0.25]
[1734033746971,2.57831,3878.6,3877.9,0.25]
[1734033747135,2.61059219,3878.5,3877.9,0.25]
[1734033747683,0.55,3878.4,3877.6,0.25]
[1734033747833,0.03223697,3878.3,3877.7,0.25]
[1734033748034,3.12844,3878.4,3877.8,0.25]
[1734033748229,2.61070622,3878.3,3877.7,0.25]
[1734033749105,1.33750987,3879.3,3878.0,0.25]
[1734033749264,1.33750987,3879.3,3877.8,0.25]
[1734033749265,0.55,3878.4,3877.8,0.25]
[1734033749468,3.12839,3878.4,3877.8,0.25]
[1734033749652,3.16062619,3878.4,3877.8,0.25]
[1734033750162,2.57821,3878.7,3878.0,0.25]
[1734033750367,3.12803,3879.0,3878.3,0.25]
[1734033750579,2.57803,3879.0,3878.3,0.25]
[1734033750766,0.03223193,3879.0,3878.2,0.25]
[1734033750968,2.57813,3878.8,3878.3,0.25]
[1734033751168,2.57799,3879.0,3878.3,0.25]
[1734033751377,0.03223182,3879.0,3878.2,0.25]
[1734033751612,2.57815,3878.8,3878.2,0.25]
[1734033751763,2.61044325,3878.7,3877.9,0.25]
[1734033752177,2.57831,3878.5,3877.8,0.25]
[1734033752393,1.38713687,3878.4,3877.6,0.25]
[1734033752722,5.90637569,3879.1,3877.9,0.25]
[1734033752723,2.57826,3878.6,3877.9,0.25]
[1734033752874,0.55,3878.4,3877.8,0.25]
[1734033753317,0.55,3878.5,3877.8,0.25]
[1734033753491,0.312829,3878.4,3877.8,0.25]
[1734033753690,0.55,3878.3,3877.8,0.25]
[1734033754220,2.57811,3878.9,3878.1,0.25]
[1734033754387,0.55,3878.8,3878.1,0.25]
[1734033754590,2.57826,3878.6,3878.1,0.25]
[1734033754791,0.03223369,3878.7,3878.1,0.25]
[1734033754988,0.03223363,3878.6,3878.1,0.25]
[1734033755194,0.58223377,3878.8,3878.1,0.25]
[1734033755389,3.16033366,3878.9,3878.1,0.25]
[1734033755621,1.35631312,3878.9,3878.1,0.25]
[1734033756323,3.93436312,3878.9,3878.1,0.25]
[1734033756478,0.55,3878.7,3878.1,1.0187]
[1734033756672,2.57811,3878.8,3878.2,0.25]
[1734033756877,0.03223295,3878.7,3878.2,0.25]
[1734033757079,2.61042295,3878.7,3878.2,0.25]
[1734033757716,2.57819,3878.7,3878.2,0.25]
[1734033757888,0.90434307,3879.4,3878.6,0.25]
[1734033758096,2.57785,3879.2,3878.7,0.1]
[1734033758295,2.57805,3878.9,3878.4,0.25]
[1734033758497,2.57819,3878.7,3878.2,0.25]
[1734033758808,0.03223177,3878.6,3878.3,0.1]
[1734033759020,2.57799,3879.0,3878.4,0.25]
[1734033759314,2.83907225,3878.9,3878.3,0.1]
[1734033759519,2.61035241,3878.8,3878.3,0.1]
[1734033760215,0.03223241,3878.8,3878.4,0.25]
[1734033760384,0.55,3879.2,3878.4,0.25]
[1734033760589,0.14212943,3879.3,3878.7,0.1]
[1734033761408,2.71992943,3879.3,3878.7,0.1]
[1734033761612,2.71992943,3879.3,3878.1,0.7687]
[1734033761613,0.39787919,3879.2,3878.1,0.7687]
[1734033761819,0.39787919,3879.2,3878.3,0.1]
[1734033761984,0.55,3878.9,3878.3,0.1]
[1734033762612,0.55,3879.1,3878.5,0.35]
[1734033762822,2.57805,3878.9,3878.5,0.35]
[1734033763115,2.57805,3878.9,3878.5,0.1]
[1734033763283,0.3998794,3879.0,3878.5,0.35]
[1734033764116,0.55,3879.1,3878.5,0.35]
[1734033764315,0.51695126,3879.6,3878.7,0.1]
[1734033764519,0.55,3879.5,3878.7,0.1]
[1734033764721,2.57782,3879.3,3878.7,0.1]
[1734033765017,0.582229,3879.5,3878.7,0.1]
[1734033765219,0.55,3879.3,3878.7,0.1]
[1734033765421,0.55,3879.3,3878.7,0.35]
[1734033765720,0.8062,3880.4,3879.5,0.1]
[1734033765927,0.5108304,3880.8,3879.8,0.25]
[1734033766224,2.57698,3880.6,3880.0,0.1]
[1734033766382,2.88898302,3880.6,3880.0,0.1]
[1734033766587,2.57699,3880.5,3880.0,0.1]
[1734033766797,0.34422172,3880.6,3880.0,0.1]
[1734033767120,2.57711,3880.4,3880.0,0.1]
[1734033767817,0.55,3880.3,3880.0,0.1]
[1734033768193,0.03221864,3880.2,3879.4,1.1259]
[1734033768392,1.3608,3880.1,3878.9,1.1652]
[1734033768619,2.57784,3879.3,3878.9,0.9152]
[1734033768822,0.55,3879.1,3878.9,0.9152]
[1734033769027,0.55,3879.1,3878.9,0.1]
[1734033769517,0.55,3879.3,3878.9,0.1]
[1734033769725,3.12781,3879.3,3878.9,0.1]
[1734033770713,2.57779,3879.3,3878.9,0.1]
[1734033770914,2.57793,3879.1,3878.9,0.1]
[1734033771085,0.58222851,3879.2,3878.5,0.25]
[1734033771086,2.57816,3878.8,3878.5,0.25]
[1734033771300,3.12799,3879.0,3878.6,0.1]
[1734033771501,0.03223046,3878.9,3878.6,0.1]
[1734033771738,2.61028046,3878.9,3878.6,0.1]
[1734033772034,0.03223046,3878.9,3878.5,0.25]
[1734033772232,2.57812,3878.8,3878.5,0.25]
[1734033772539,0.58223099,3878.7,3878.5,0.25]
[1734033772905,0.55,3878.7,3878.5,0.25]
[1734033773361,0.0322323,3879.1,3878.5,0.25]
[1734033773632,0.0322323,3879.1,3878.2,0.1]
[1734033773633,0.03223071,3879.1,3878.6,0.25]
[1734033773793,3.12804,3879.0,3878.4,0.25]
[1734033773998,3.12804,3879.0,3878.5,0.25]
[1734033774332,0.03223052,3878.9,3878.6,0.1]
[1734033774532,0.03223038,3878.9,3878.6,0.1]
[1734033774765,0.55,3878.9,3878.8,0.25]
[1734033775235,0.55,3878.9,3878.6,0.35]
[1734033775539,2.5774,3879.9,3879.3,0.25]
[1734033775834,0.33811,3879.9,3879.4,0.1]
[1734033776044,2.57708,3880.4,3879.6,0.1]
[1734033776202,2.57708,3880.4,3879.8,0.35]
[1734033776203,0.03222118,3880.4,3879.8,0.35]
[1734033776724,2.57722,3880.2,3879.8,0.35]
[1734033776899,2.57722,3880.2,3879.0,0.7984]
[1734033776900,1.05668134,3881.0,3880.3,0.35]
[1734033777245,0.26752333,3881.2,3880.8,0.1]
[1734033777415,2.57663,3881.1,3880.8,0.1]
[1734033777612,2.57663,3881.1,3880.5,0.25]
[1734033777844,0.03221297,3881.4,3880.5,0.25]
[1734033778000,2.5767,3881.0,3880.5,0.25]
[1734033778200,2.83437,3881.0,3880.5,0.25]
[1734033778513,2.57679,3880.8,3880.5,0.25]
[1734033778717,2.57679,3880.8,3879.9,0.7984]
[1734033778718,2.57692,3880.6,3880.1,0.25]
[1734033778920,2.60921611,3880.5,3880.1,0.25]
[1734033779216,0.03221611,3880.5,3880.1,0.25]
[1734033779403,2.57686,3880.7,3880.1,0.25]
[1734033779606,2.57699,3880.5,3880.1,0.25]
[1734033779843,0.55,3880.4,3880.1,0.25]
[1734033780647,0.55,3880.5,3880.1,0.25]
[1734033780848,0.55,3880.6,3880.1,0.25]
[1734033781149,0.55,3880.6,3879.9,1.0484]
[1734033781364,3.12693,3880.6,3880.2,0.25]
[1734033781656,2.94791479,3880.5,3880.2,0.25]
[1734033781964,0.40313247,3880.5,3880.2,0.25]
[1734033782260,0.03221782,3880.4,3880.0,0.25]
[1734033782462,0.03221782,3880.4,3879.9,0.7984]
[1734033782463,2.57738,3879.9,3879.8,0.25]
[1734033782744,2.60930782,3880.4,3879.6,0.25]
[1734033782745,0.55,3880.1,3879.6,0.25]
[1734033783056,0.55,3880.1,3879.8,0.25]
[1734033783236,0.55,3880.0,3879.8,0.25]
[1734033783609,0.7574,3880.5,3880.0,0.25]
[1734033783610,0.55,3880.2,3880.0,0.25]
[1734033783845,0.55,3880.8,3880.0,0.25]
[1734033784172,0.03221708,3880.7,3880.1,1.0725]
[1734033784446,0.03221708,3880.7,3878.8,5.48685534]
[1734033784447,2.57714,3880.3,3879.9,0.25]
[1734033784648,2.57714,3880.3,3879.5,0.25]
[1734033784649,0.03221978,3880.2,3879.5,0.25]
[1734033784985,0.03221978,3880.2,3879.2,1.0725]
[1734033785447,0.03221978,3880.2,3879.2,0.25]
[1734033785626,0.55,3880.1,3879.2,0.25]
[1734033785823,2.834834,3880.3,3879.5,0.25]
[1734033785824,0.257714,3880.3,3879.5,0.25]
[1734033786023,0.257714,3880.3,3878.8,0.7602]
[1734033786024,3.12726,3880.1,3879.7,0.25]
[1734033786409,0.55,3880.1,3879.7,0.25]
[1734033786728,2.57732,3880.0,3879.7,0.25]
[1734033786929,0.03222294,3880.2,3879.7,0.25]
[1734033786930,3.12719,3880.2,3879.7,0.25]
[1734033787150,2.5774,3879.9,3879.7,0.25]
[1734033787313,0.25774,3879.8,3879.7,0.25]
[1734033787510,0.25774,3879.8,3878.8,3.33828]
[1734033787511,2.57758,3879.6,3879.5,0.25]
[1734033787814,2.57765,3879.5,3879.1,0.25]
[1734033788009,0.25774,3879.8,3879.3,0.25]
[1734033788216,0.55,3879.7,3879.6,0.25]
[1734033788405,2.57744,3879.9,3879.6,0.25]
[1734033788606,2.57748,3879.8,3879.6,0.25]
[1734033789144,2.57733,3880.0,3879.6,0.25]
[1734033789445,2.57751,3879.7,3879.6,0.25]
[1734033790370,0.03222298,3880.0,3879.6,0.25]
[1734033790662,0.55,3879.9,3879.6,0.25]
[1734033790969,3.12745,3879.8,3879.7,0.7996]
[1734033791281,0.55,3880.0,3879.7,0.7996]
[1734033791472,0.55,3880.0,3879.6,0.25]
[1734033791473,3.12737,3880.0,3879.6,0.25]
[1734033791777,2.57758,3879.6,3879.3,0.25]
[1734033792068,0.55,3879.8,3879.7,0.25]
[1734033792255,0.55,3879.9,3879.3,0.25]
[1734033792567,0.55,3879.9,3879.6,0.25]
[1734033793147,3.495113,3879.9,3879.6,0.25]
[1734033793481,3.495113,3879.9,3879.3,0.25]
[1734033793482,2.5776,3879.6,3879.3,0.25]
[1734033793833,0.55,3879.7,3879.5,0.25]
[1734033793962,3.12752,3879.7,3879.5,0.25]
[1734033794439,3.12752,3879.7,3879.1,0.25]
[1734033794639,0.35274779,3879.6,3879.1,0.25]
[1734033794858,0.35274779,3879.6,3879.5,0.25]
[1734033795766,0.55,3879.8,3879.5,0.25]
[1734033796282,2.57758,3879.6,3879.1,0.25]
[1734033796442,0.03222567,3879.5,3879.4,0.25]
[1734033796642,3.15973529,3879.8,3879.4,0.25]
[1734033796971,2.57751,3879.7,3879.4,0.25]
[1734033797164,3.01310683,3879.7,3879.4,0.25]
[1734033797366,3.56310683,3879.7,3879.6,0.25]
[1734033797678,2.57778,3879.3,3879.2,0.25]
[1734033797879,0.55,3879.5,3879.2,0.25]
[1734033798053,3.12765,3879.5,3879.2,0.25]
[1734033798375,0.35954738,3879.4,3879.2,0.25]
[1734033798574,2.61000672,3879.3,3879.2,0.25]
[1734033798982,3.12787,3879.2,3878.2,0.25]
[1734033799154,2.57842,3878.4,3878.2,0.25]
[1734033799481,2.57811,3878.8,3878.2,0.25]
[1734033799482,2.57844,3878.3,3878.2,0.25]
[1734033799686,0.55,3878.2,3877.5,0.25]
[1734033799883,0.55,3878.2,3876.3,1.61263829]
[1734033799884,3.55,3877.6,3876.7,0.8262]
[1734033800182,2.57914,3877.3,3876.9,0.25]
[1734033800513,0.58224532,3877.2,3876.9,0.25]
[1734033800645,0.55,3877.2,3876.5,0.25]
[1734033801008,0.55,3877.2,3876.3,0.8262]
[1734033801009,0.55,3877.0,3876.8,0.25]
[1734033801286,0.55,3877.5,3877.1,0.25]
[1734033801783,0.55,3877.5,3876.3,0.8262]
[1734033801784,0.03224322,3877.5,3877.3,0.25]
[1734033802154,0.55,3877.4,3876.8,0.25]
[1734033802483,0.55,3877.2,3876.6,0.2]
[1734033802816,0.60701507,3877.1,3876.9,0.2]
[1734033803588,0.58224644,3877.3,3876.9,0.2]
[1734033803756,0.03224644,3877.0,3876.9,0.2]
[1734033804082,0.55,3877.1,3876.9,0.2]
[1734033804583,0.58224707,3877.0,3876.9,0.2]
[1734033804888,0.55,3877.0,3876.9,0.2]
[1734033805184,0.89910324,3877.0,3876.9,0.2]
[1734033805488,0.55,3877.2,3876.9,0.2]
[1734033805652,0.5822466,3877.2,3876.9,0.2]
[1734033806379,0.55,3877.2,3876.9,0.2]
[1734033807103,0.58224647,3877.2,3876.9,0.2]
[1734033807285,2.90878534,3877.7,3876.9,0.2]
[1734033807450,3.0,3878.0,3877.3,0.2]
[1734033807752,2.90878534,3877.7,3877.1,0.2]
[1734033807951,2.90878534,3877.7,3876.5,0.8262]
[1734033807952,5.48790534,3877.3,3876.8,0.2]
[1734033808170,0.0322457,3877.2,3876.8,0.2]
[1734033808372,0.6652508,3877.2,3876.8,0.2]
[1734033808554,0.6330051,3877.2,3876.8,0.2]
[1734033808761,0.55,3877.3,3877.0,0.2]
[1734033808967,0.55,3877.3,3877.2,0.2]
[1734033809162,0.55,3877.4,3877.2,0.2]
[1734033809569,0.55,3877.5,3877.2,0.2]
[1734033809789,0.55,3877.3,3877.0,0.2]
[1734033810107,0.68639456,3877.3,3877.0,0.2]
[1734033811228,1.46809456,3877.3,3877.0,0.2]
[1734033811368,2.57939,3876.9,3876.7,0.2]
[1734033811576,0.55,3876.7,3876.1,0.2]
[1734033811775,0.55,3876.5,3876.1,0.2]
[1734033812008,0.42973804,3876.4,3875.9,0.2]
[1734033812207,0.55,3876.6,3876.4,0.2]
[1734033812409,2.5799,3876.2,3875.3,0.9807]
[1734033812610,0.55,3876.0,3875.5,0.2]
[1734033812811,3.13013,3875.8,3875.3,0.9807]
[1734033813028,0.55,3875.6,3875.5,0.2]
[1734033813309,0.86623881,3875.6,3875.2,0.2]
[1734033813509,0.86623881,3875.6,3875.5,0.2]
[1734033813708,2.90878534,3876.4,3875.8,0.2]
[1734033813709,0.58225926,3876.3,3875.8,0.2]
[1734033814074,0.55,3876.3,3875.8,0.2]
[1734033814297,0.58225647,3876.3,3875.8,0.2]
[1734033814508,2.90878534,3875.9,3875.1,0.2]
[1734033814714,0.8731378,3875.8,3875.7,0.2]
[1734033814910,0.55,3876.1,3875.7,0.2]
[1734033815208,0.55,3875.9,3875.7,0.2]
[1734033816073,0.55,3875.8,3875.7,0.2]
[1734033816938,0.813,3875.9,3875.2,0.2]
[1734033817120,0.813,3875.9,3874.9,0.7807]
[1734033817121,0.58225863,3875.8,3875.7,0.2]
[1734033817315,0.55,3876.1,3875.7,0.2]
[1734033817479,0.55,3875.9,3875.7,0.2]
[1734033818326,0.55,3875.9,3875.2,0.2]
[1734033818327,0.55,3875.6,3875.2,0.2]
[1734033818488,0.55,3875.6,3874.0,16.51182177]
[1734033818489,2.90878534,3875.2,3874.8,0.2]
[1734033818823,2.90878534,3875.2,3874.0,13.41769144]
[1734033818824,0.55,3874.9,3874.6,0.2]
[1734033818974,0.55,3874.9,3874.4,0.2]
[1734033818975,2.90878534,3874.8,3874.4,0.2]
[1734033819176,3.13092,3874.6,3874.1,14.15601181]
[1734033819409,2.58106,3874.4,3874.1,14.15601181]
[1734033819614,3.13091,3874.6,3874.1,14.15601181]
[1734033819826,3.13091,3874.6,3873.7,15.56348043]
[1734033819827,3.13091,3874.6,3874.3,0.2]
[1734033819828,0.55,3874.6,3874.3,0.2]
[1734033820237,0.03226829,3874.5,3874.3,0.2]
[1734033820823,0.84526829,3874.5,3874.3,0.2]
[1734033821235,0.55,3874.4,3874.1,0.2]
[1734033821426,0.03227117,3874.3,3874.1,0.2]
[1734033821948,0.55,3874.2,3874.1,0.2]
[1734033822145,0.55,3874.4,3874.1,0.2]
[1734033822350,0.58227005,3874.4,3874.1,0.2]
[1734033823410,0.98002515,3874.4,3874.1,0.2]
[1734033823647,0.55,3875.1,3874.4,0.2]
[1734033823967,0.55,3874.9,3874.5,0.7807]
[1734033824137,0.03226483,3874.9,3874.5,0.7807]
[1734033824474,0.03226483,3874.9,3874.4,0.2]
[1734033825449,0.52497296,3875.3,3874.4,0.2]
[1734033825450,3.1308,3874.8,3874.4,0.2]
[1734033825756,0.31308,3874.7,3874.4,0.2]
[1734033825956,0.55,3874.8,3874.4,0.2]
[1734033826135,0.55,3875.0,3874.4,0.2]
[1734033826455,0.55,3875.0,3874.1,0.0907]
[1734033826657,0.55,3874.8,3874.1,0.0907]
[1734033827159,0.03226733,3874.7,3874.1,0.0907]
[1734033827338,0.34856106,3874.7,3874.1,0.0907]
[1734033827534,0.03226733,3874.7,3873.2,3.0]
[1734033827979,0.55,3874.6,3873.8,2.58143]
[1734033828451,0.55,3874.9,3873.8,2.58143]
[1734033828658,0.55,3875.0,3873.8,2.58143]
[1734033828971,0.55,3874.8,3873.8,2.58143]
[1734033829278,0.03226858,3874.9,3873.3,3.0]
[1734033829480,5.33678221,3875.5,3874.4,0.7642]
[1734033829666,3.0,3875.6,3874.5,2.58094]
[1734033829869,0.638702,3875.5,3874.4,0.7642]
[1734033830187,0.12649714,3876.5,3875.2,2.5805]
[1734033830188,2.33678221,3876.4,3875.2,2.5805]
[1734033830481,3.36086,3877.3,3875.6,0.7567]
[1734033830482,0.8132,3876.7,3875.6,0.7567]
[1734033830643,0.03225707,3876.5,3875.6,3.33692]
[1734033830843,0.8132,3877.1,3876.2,2.57982]
[1734033831044,0.7817,3877.3,3875.7,2.58017]
[1734033831348,0.0322459,3877.2,3875.9,2.58004]
[1734033831651,2.57927,3877.1,3875.9,2.58004]
[1734033831892,0.03224847,3877.0,3875.9,2.58004]
[1734033832200,2.57945,3876.8,3875.6,3.33694]
[1734033832347,0.03225038,3876.7,3875.6,1.090394]
[1734033832547,0.03225038,3876.7,3875.6,3.33693]
[1734033833042,0.03225038,3876.8,3875.6,0.7567]
[1734033833240,2.57951,3876.7,3875.6,0.7567]
[1734033833441,0.55,3876.5,3875.6,0.7567]
[1734033833679,2.57993,3876.1,3875.2,0.764]
[1734033833978,0.89524897,3876.0,3875.2,0.764]
[1734033834180,0.89524897,3876.0,3874.8,1.298614]
[1734033834181,2.58007,3875.9,3874.8,2.062614]
[1734033834381,0.89524897,3876.0,3874.8,2.062614]
[1734033834382,0.55,3875.7,3874.8,2.062614]
[1734033834546,0.55,3875.5,3874.8,2.062614]
[1734033834979,0.55,3875.7,3874.8,2.062614]
[1734033835320,0.55,3875.5,3874.8,2.062614]
[1734033835518,0.5822608,3875.5,3874.8,2.062614]
[1734033835684,0.5822608,3875.5,3874.8,1.298614]
[1734033835887,3.1625708,3875.5,3874.8,1.298614]
[1734033836221,0.55,3875.3,3874.8,1.298614]
[1734033836396,0.5822608,3875.5,3874.8,1.298614]
[1734033836397,0.40352595,3875.2,3874.8,1.298614]
[1734033836599,0.55,3875.3,3874.8,1.298614]
[1734033836821,0.03226087,3875.2,3874.8,1.298614]